[Event "Early-Titled-Tuesday-Blitz-January-30-2024"]
[Site "Chess.com"]
[Date "2024.01.30"]
[Round "10"]
[White "Arlo2024"]
[Black "Darkbluelord"]
[Result "1-0"]
[WhiteElo "2274"]
[BlackElo "2118"]
[TimeControl "180+1"]
[EndTime "10:01:27 PST"]
[Termination "Arlo2024 won by resignation"]

1. e4 {[%clk 0:03:00.9]} 1... c5 {[%clk 0:02:59.6]} 2. Nc3 {[%clk 0:03:00.6]}
2... d6 {[%clk 0:02:59.8]} 3. g3 {[%clk 0:03:01.5]} 3... g6 {[%clk 0:02:59.3]}
4. Bg2 {[%clk 0:03:02.1]} 4... Bg7 {[%clk 0:02:59.8]} 5. d3 {[%clk 0:03:02.8]}
5... Nf6 {[%clk 0:03:00.1]} 6. Nge2 {[%clk 0:03:02.7]} 6... O-O {[%clk
0:03:00.7]} 7. O-O {[%clk 0:03:02.7]} 7... Nc6 {[%clk 0:03:00.8]} 8. f4 {[%clk
0:03:02.9]} 8... Rb8 {[%clk 0:02:51.8]} 9. h3 {[%clk 0:03:03]} 9... Bd7 {[%clk
0:02:49.4]} 10. a4 {[%clk 0:03:02.4]} 10... a6 {[%clk 0:02:49.2]} 11. g4 {[%clk
0:03:02.9]} 11... b6 {[%clk 0:02:48]} 12. Ng3 {[%clk 0:03:00.7]} 12... Nd4
{[%clk 0:02:45.7]} 13. g5 {[%clk 0:02:55.7]} 13... Ne8 {[%clk 0:02:45.1]} 14.
Nd5 {[%clk 0:02:53.9]} 14... e6 {[%clk 0:02:41.4]} 15. Ne3 {[%clk 0:02:54.5]}
15... b5 {[%clk 0:02:41.3]} 16. c3 {[%clk 0:02:51.8]} 16... Nc6 {[%clk
0:02:38.3]} 17. axb5 {[%clk 0:02:50.9]} 17... axb5 {[%clk 0:02:38.2]} 18. h4
{[%clk 0:02:49.8]} 18... b4 {[%clk 0:02:31.7]} 19. Bd2 {[%clk 0:02:44.1]} 19...
bxc3 {[%clk 0:02:30.6]} 20. bxc3 {[%clk 0:02:44.4]} 20... Rb2 {[%clk 0:02:25.5]}
21. Nc4 {[%clk 0:02:44.1]} 21... Rb8 {[%clk 0:02:19.1]} 22. h5 {[%clk
0:02:44.1]} 22... f6 {[%clk 0:01:55.4]} 23. gxf6 {[%clk 0:02:30.3]} 23... Nxf6
{[%clk 0:01:54]} 24. hxg6 {[%clk 0:02:22.1]} 24... hxg6 {[%clk 0:01:53.1]} 25.
Nxd6 {[%clk 0:02:22.2]} 25... Be8 {[%clk 0:01:36.1]} 26. e5 {[%clk 0:02:21.8]}
26... Nd5 {[%clk 0:01:23]} 27. Qg4 {[%clk 0:02:18.9]} 27... Qe7 {[%clk 0:01:06]}
28. Nge4 {[%clk 0:01:51.9]} 28... Rb2 {[%clk 0:00:48.6]} 29. Bc1 {[%clk
0:01:29.2]} 29... Rc2 {[%clk 0:00:44.6]} 30. c4 {[%clk 0:01:23.5]} 30... Nc3
{[%clk 0:00:37.3]} 31. Nxc5 {[%clk 0:01:18.5]} 31... Ne2+ {[%clk 0:00:35.4]} 32.
Kh2 {[%clk 0:01:14.8]} 32... Nxc1 {[%clk 0:00:33.4]} 33. Raxc1 {[%clk
0:01:11.7]} 33... Rxc1 {[%clk 0:00:32.8]} 34. Rxc1 {[%clk 0:01:11.9]} 34... Nxe5
{[%clk 0:00:32.2]} 35. Qxe6+ {[%clk 0:01:04.7]} 35... Qxe6 {[%clk 0:00:31.9]}
36. Nxe6 {[%clk 0:01:05.6]} 36... Rf6 {[%clk 0:00:28.8]} 37. Nxg7 {[%clk
0:01:01]} 37... Ng4+ {[%clk 0:00:24.3]} 38. Kg3 {[%clk 0:00:59.9]} 38... Rxd6
{[%clk 0:00:18.2]} 39. Nxe8 {[%clk 0:00:59.2]} 39... Rxd3+ {[%clk 0:00:15.9]}
40. Kxg4 {[%clk 0:00:59.2]} 40... Kf7 {[%clk 0:00:15.2]} 41. Nc7 {[%clk
0:00:56.1]} 41... Rd2 {[%clk 0:00:15]} 42. Bd5+ {[%clk 0:00:53.8]} 42... Kg7
{[%clk 0:00:15.2]} 43. Ne6+ {[%clk 0:00:53.3]} 43... Kf6 {[%clk 0:00:15]} 44.
Ng5 {[%clk 0:00:52.3]} 44... Rh2 {[%clk 0:00:09.8]} 45. c5 {[%clk 0:00:47.6]}
45... Rd2 {[%clk 0:00:08.3]} 46. Bf3 {[%clk 0:00:47.4]} 46... Rd7 {[%clk
0:00:05]} 47. c6 {[%clk 0:00:47.4]} 47... Rc7 {[%clk 0:00:05.1]} 48. Rb1 {[%clk
0:00:43.8]} 1-0

[Event "Early-Titled-Tuesday-Blitz-January-30-2024"]
[Site "Chess.com"]
[Date "2024.01.30"]
[Round "10"]
[White "Caroexpert"]
[Black "dretch"]
[Result "0-1"]
[WhiteElo "2592"]
[BlackElo "2809"]
[TimeControl "180+1"]
[EndTime "10:01:32 PST"]
[Termination "dretch won by resignation"]

1. d4 {[%clk 0:02:51.4]} 1... d5 {[%clk 0:02:54.9]} 2. Nf3 {[%clk 0:02:48.8]}
2... Nf6 {[%clk 0:02:54.9]} 3. Bf4 {[%clk 0:02:48]} 3... Nh5 {[%clk 0:02:50.9]}
4. Bd2 {[%clk 0:02:06.1]} 4... Nd7 {[%clk 0:02:50.9]} 5. c4 {[%clk 0:02:05.1]}
5... e6 {[%clk 0:02:47.8]} 6. Nc3 {[%clk 0:02:02.7]} 6... Nhf6 {[%clk
0:02:44.3]} 7. Bg5 {[%clk 0:01:44.8]} 7... h6 {[%clk 0:02:34.4]} 8. Bh4 {[%clk
0:01:43.1]} 8... Bb4 {[%clk 0:02:32.8]} 9. cxd5 {[%clk 0:01:34.2]} 9... exd5
{[%clk 0:02:31]} 10. Nd2 {[%clk 0:01:22.4]} 10... Nb6 {[%clk 0:02:04.7]} 11. e3
{[%clk 0:01:16.7]} 11... Bf5 {[%clk 0:01:58.3]} 12. Qf3 {[%clk 0:01:08.2]} 12...
Qd7 {[%clk 0:01:39.7]} 13. Bxf6 {[%clk 0:01:04.6]} 13... gxf6 {[%clk 0:01:39.8]}
14. g4 {[%clk 0:00:55.7]} 14... Bxg4 {[%clk 0:01:34.9]} 15. Qxf6 {[%clk
0:00:55.6]} 15... Rg8 {[%clk 0:01:31.8]} 16. Rg1 {[%clk 0:00:52.7]} 16... Rg6
{[%clk 0:01:27.8]} 17. Qh8+ {[%clk 0:00:50.8]} 17... Bf8 {[%clk 0:01:17.3]} 18.
Bd3 {[%clk 0:00:29]} 18... O-O-O {[%clk 0:00:58.1]} 19. Bxg6 {[%clk 0:00:27.5]}
19... fxg6 {[%clk 0:00:58.5]} 20. Qf6 {[%clk 0:00:22.8]} 20... g5 {[%clk
0:00:49.9]} 21. Qg6 {[%clk 0:00:13.8]} 21... Bf5 {[%clk 0:00:42.5]} 22. Qh5
{[%clk 0:00:13.9]} 22... c5 {[%clk 0:00:36.1]} 23. dxc5 {[%clk 0:00:12.2]} 23...
d4 {[%clk 0:00:36.6]} 24. Nce4 {[%clk 0:00:09.5]} 24... dxe3 {[%clk 0:00:33.1]}
25. fxe3 {[%clk 0:00:09.2]} 25... Nd5 {[%clk 0:00:23.4]} 26. Qe2 {[%clk
0:00:08.1]} 26... Nb4 {[%clk 0:00:19.9]} 27. O-O-O {[%clk 0:00:06.3]} 27... Qa4
{[%clk 0:00:14]} 28. Nc4 {[%clk 0:00:03.7]} 28... Nxa2+ {[%clk 0:00:12.2]} 29.
Kb1 {[%clk 0:00:03.9]} 29... Bxe4+ {[%clk 0:00:12.7]} 30. Ka1 {[%clk 0:00:02.6]}
30... Nc3+ {[%clk 0:00:12.5]} 31. Na3 {[%clk 0:00:03.3]} 31... Nxe2 {[%clk
0:00:12.9]} 32. Rxd8+ {[%clk 0:00:02.8]} 32... Kxd8 {[%clk 0:00:13]} 0-1

[Event "Early-Titled-Tuesday-Blitz-January-30-2024"]
[Site "Chess.com"]
[Date "2024.01.30"]
[Round "10"]
[White "manitodeplomo"]
[Black "shimastream"]
[Result "0-1"]
[WhiteElo "2681"]
[BlackElo "2997"]
[TimeControl "180+1"]
[EndTime "10:01:32 PST"]
[Termination "shimastream won on time"]

1. d4 {[%clk 0:03:00.9]} 1... b6 {[%clk 0:02:55]} 2. e4 {[%clk 0:02:57.9]} 2...
Bb7 {[%clk 0:02:55.3]} 3. Bd3 {[%clk 0:02:56.3]} 3... e6 {[%clk 0:02:55.4]} 4.
Nf3 {[%clk 0:02:55.4]} 4... c5 {[%clk 0:02:54.7]} 5. c3 {[%clk 0:02:54.6]} 5...
Nf6 {[%clk 0:02:52.7]} 6. Qe2 {[%clk 0:02:52]} 6... d5 {[%clk 0:02:46.1]} 7. e5
{[%clk 0:02:51.2]} 7... Nfd7 {[%clk 0:02:41.6]} 8. O-O {[%clk 0:02:44.4]} 8...
Be7 {[%clk 0:02:41]} 9. a3 {[%clk 0:02:42.5]} 9... Nc6 {[%clk 0:02:40.1]} 10. b4
{[%clk 0:02:42]} 10... g5 {[%clk 0:02:39.7]} 11. Be3 {[%clk 0:02:40]} 11... h5
{[%clk 0:02:32.5]} 12. Nbd2 {[%clk 0:02:28.8]} 12... g4 {[%clk 0:02:30.4]} 13.
Ne1 {[%clk 0:02:27.6]} 13... Qc7 {[%clk 0:02:30.5]} 14. f4 {[%clk 0:02:25.6]}
14... O-O-O {[%clk 0:02:09.4]} 15. Bb5 {[%clk 0:01:19.6]} 15... f6 {[%clk
0:01:47.8]} 16. Nd3 {[%clk 0:01:16.1]} 16... c4 {[%clk 0:01:44.6]} 17. Nb2
{[%clk 0:01:06.5]} 17... fxe5 {[%clk 0:01:26.6]} 18. fxe5 {[%clk 0:01:07.4]}
18... Rdf8 {[%clk 0:01:19.9]} 19. Ba4 {[%clk 0:00:56.7]} 19... a5 {[%clk
0:00:37.6]} 20. Rfc1 {[%clk 0:00:22.8]} 20... h4 {[%clk 0:00:27.5]} 21. Qxg4
{[%clk 0:00:19.6]} 21... h3 {[%clk 0:00:20.3]} 22. Qxe6 {[%clk 0:00:13.9]} 22...
Re8 {[%clk 0:00:05.8]} 23. Rf1 {[%clk 0:00:08.7]} 23... hxg2 {[%clk 0:00:04.3]}
24. Rf7 {[%clk 0:00:08.5]} 24... Nd8 {[%clk 0:00:04.8]} 25. Qxd7+ {[%clk
0:00:05.1]} 25... Qxd7 {[%clk 0:00:05.7]} 26. Bxd7+ {[%clk 0:00:02.8]} 26...
Kxd7 {[%clk 0:00:06.6]} 27. Rf2 {[%clk 0:00:03.1]} 27... Rh3 {[%clk 0:00:06.2]}
28. Bf4 {[%clk 0:00:02.2]} 28... Rxc3 {[%clk 0:00:05.4]} 0-1

[Event "Early-Titled-Tuesday-Blitz-January-30-2024"]
[Site "Chess.com"]
[Date "2024.01.30"]
[Round "10"]
[White "winniethepooh04"]
[Black "Laico"]
[Result "1-0"]
[WhiteElo "2539"]
[BlackElo "2375"]
[TimeControl "180+1"]
[EndTime "10:01:34 PST"]
[Termination "winniethepooh04 won on time"]

1. d4 {[%clk 0:03:00.9]} 1... e6 {[%clk 0:02:57.3]} 2. Nf3 {[%clk 0:03:01.4]}
2... f5 {[%clk 0:02:57.5]} 3. Bf4 {[%clk 0:03:01.7]} 3... b6 {[%clk 0:02:57.8]}
4. e3 {[%clk 0:03:02.1]} 4... Bb7 {[%clk 0:02:58.6]} 5. Nbd2 {[%clk 0:03:02.5]}
5... Nf6 {[%clk 0:02:59.3]} 6. Be2 {[%clk 0:03:02.6]} 6... Be7 {[%clk
0:03:00.1]} 7. h3 {[%clk 0:03:03]} 7... O-O {[%clk 0:03:00.6]} 8. O-O {[%clk
0:03:03.4]} 8... d6 {[%clk 0:03:01.2]} 9. c4 {[%clk 0:03:03.7]} 9... Qe8 {[%clk
0:03:01.1]} 10. Rc1 {[%clk 0:03:03.5]} 10... Nbd7 {[%clk 0:03:00.9]} 11. b4
{[%clk 0:03:03.1]} 11... Ne4 {[%clk 0:02:53.9]} 12. Bh2 {[%clk 0:02:57.3]} 12...
Qg6 {[%clk 0:02:51.3]} 13. Nxe4 {[%clk 0:02:52.6]} 13... Bxe4 {[%clk 0:02:50.8]}
14. Qb3 {[%clk 0:02:47.8]} 14... Kh8 {[%clk 0:02:47.4]} 15. Rfd1 {[%clk
0:02:47.4]} 15... Nf6 {[%clk 0:02:43.7]} 16. Ne1 {[%clk 0:02:46.9]} 16... Nh5
{[%clk 0:02:34.5]} 17. Bf3 {[%clk 0:02:41.3]} 17... Bh4 {[%clk 0:02:20]} 18. c5
{[%clk 0:02:32.5]} 18... f4 {[%clk 0:01:51.8]} 19. cxd6 {[%clk 0:02:19.1]} 19...
cxd6 {[%clk 0:01:50.9]} 20. Rc7 {[%clk 0:02:19.3]} 20... Bd5 {[%clk 0:01:15.6]}
21. Bxd5 {[%clk 0:02:01.4]} 21... fxe3 {[%clk 0:01:15.9]} 22. fxe3 {[%clk
0:01:56.7]} 22... exd5 {[%clk 0:00:50.4]} 23. Qxd5 {[%clk 0:01:55.2]} 23... Ng3
{[%clk 0:00:24.1]} 24. Nf3 {[%clk 0:01:45.3]} 24... Ne2+ {[%clk 0:00:24.3]} 25.
Kh1 {[%clk 0:01:44.3]} 25... Bg3 {[%clk 0:00:22]} 26. Qc4 {[%clk 0:01:31.7]}
26... Bxh2 {[%clk 0:00:20.4]} 27. Qxe2 {[%clk 0:01:31.7]} 27... Bg3 {[%clk
0:00:20.8]} 28. Rdc1 {[%clk 0:01:25.5]} 28... h6 {[%clk 0:00:20]} 29. a4 {[%clk
0:01:23.5]} 29... Rae8 {[%clk 0:00:17.1]} 30. Rxa7 {[%clk 0:01:20.6]} 30... Bf4
{[%clk 0:00:16.6]} 31. Rc3 {[%clk 0:01:18.8]} 31... Qe4 {[%clk 0:00:16.4]} 32.
Qd3 {[%clk 0:01:06.9]} 32... Qxd3 {[%clk 0:00:11.8]} 33. Rxd3 {[%clk 0:01:06.4]}
33... Bxe3 {[%clk 0:00:12.7]} 34. Rd1 {[%clk 0:01:01.2]} 34... Ra8 {[%clk
0:00:07.4]} 35. Rxa8 {[%clk 0:00:57.8]} 35... Rxa8 {[%clk 0:00:08.3]} 36. Ra1
{[%clk 0:00:57.4]} 36... Kg8 {[%clk 0:00:07]} 37. a5 {[%clk 0:00:57.5]} 37...
bxa5 {[%clk 0:00:06.3]} 38. bxa5 {[%clk 0:00:58.4]} 38... Ra6 {[%clk 0:00:06.8]}
39. Ra3 {[%clk 0:00:57.5]} 39... Bf2 {[%clk 0:00:05.7]} 40. g4 {[%clk
0:00:56.2]} 40... Bg3 {[%clk 0:00:04.4]} 41. Kg2 {[%clk 0:00:56.1]} 41... Bf4
{[%clk 0:00:05]} 42. Ra2 {[%clk 0:00:52.5]} 42... Kf7 {[%clk 0:00:05.1]} 43. Kf1
{[%clk 0:00:52.7]} 43... Ke6 {[%clk 0:00:05.4]} 44. Ke2 {[%clk 0:00:53.4]} 44...
Kd5 {[%clk 0:00:05.9]} 45. Kd3 {[%clk 0:00:54.1]} 45... Bg3 {[%clk 0:00:02.7]}
46. Nd2 {[%clk 0:00:51.5]} 46... Be1 {[%clk 0:00:01.5]} 47. Nc4 {[%clk
0:00:50.8]} 47... Bb4 {[%clk 0:00:01.5]} 48. Rb2 {[%clk 0:00:49.7]} 1-0

[Event "Early-Titled-Tuesday-Blitz-January-30-2024"]
[Site "Chess.com"]
[Date "2024.01.30"]
[Round "10"]
[White "aksuliini1"]
[Black "MaxLeto"]
[Result "1-0"]
[WhiteElo "2516"]
[BlackElo "2370"]
[TimeControl "180+1"]
[EndTime "10:01:35 PST"]
[Termination "aksuliini1 won on time"]

1. e4 {[%clk 0:03:00.9]} 1... c5 {[%clk 0:03:00.1]} 2. Nf3 {[%clk 0:03:01.2]}
2... d6 {[%clk 0:03:00.6]} 3. d4 {[%clk 0:03:01.6]} 3... cxd4 {[%clk 0:03:01.5]}
4. Nxd4 {[%clk 0:03:02.1]} 4... Nf6 {[%clk 0:03:02.2]} 5. Nc3 {[%clk 0:03:02.7]}
5... a6 {[%clk 0:03:03]} 6. h3 {[%clk 0:03:03.2]} 6... e6 {[%clk 0:03:03.5]} 7.
g4 {[%clk 0:03:03.1]} 7... Qc7 {[%clk 0:03:03.1]} 8. g5 {[%clk 0:02:59.2]} 8...
Nfd7 {[%clk 0:03:03.1]} 9. Bg2 {[%clk 0:02:59.7]} 9... Be7 {[%clk 0:02:50.4]}
10. h4 {[%clk 0:02:58.9]} 10... Nc6 {[%clk 0:02:44.7]} 11. Be3 {[%clk
0:02:57.4]} 11... O-O {[%clk 0:02:43]} 12. O-O {[%clk 0:02:54.2]} 12... Nde5
{[%clk 0:02:41.9]} 13. Qe2 {[%clk 0:02:44.6]} 13... b5 {[%clk 0:02:30.3]} 14.
Rad1 {[%clk 0:02:08.7]} 14... Bb7 {[%clk 0:02:23.1]} 15. f4 {[%clk 0:01:40.9]}
15... Nc4 {[%clk 0:02:11.6]} 16. f5 {[%clk 0:01:39.9]} 16... Nxd4 {[%clk
0:00:59.7]} 17. Bxd4 {[%clk 0:01:35.7]} 17... e5 {[%clk 0:00:29.2]} 18. f6
{[%clk 0:01:09]} 18... exd4 {[%clk 0:00:29.1]} 19. fxe7 {[%clk 0:01:08.6]} 19...
Qxe7 {[%clk 0:00:15.5]} 20. Rxd4 {[%clk 0:01:07.5]} 20... Nxb2 {[%clk
0:00:16.1]} 21. Rb1 {[%clk 0:01:02]} 21... Nc4 {[%clk 0:00:14.3]} 22. a4 {[%clk
0:00:59.4]} 22... Qe5 {[%clk 0:00:12.2]} 23. Qf2 {[%clk 0:00:59.1]} 23... Bc6
{[%clk 0:00:04.8]} 24. Bf1 {[%clk 0:00:55.2]} 24... Qc5 {[%clk 0:00:03.9]} 25.
Rbd1 {[%clk 0:00:36.7]} 25... Rfe8 {[%clk 0:00:03]} 26. Bxc4 {[%clk 0:00:35.2]}
26... bxc4 {[%clk 0:00:03.6]} 27. Rxd6 {[%clk 0:00:35.5]} 27... Bxe4 {[%clk
0:00:03.9]} 28. Qxc5 {[%clk 0:00:34.9]} 28... Bg6 {[%clk 0:00:02.8]} 29. Kf2
{[%clk 0:00:24.3]} 29... a5 {[%clk 0:00:02.5]} 30. Re1 {[%clk 0:00:24]} 30...
Rec8 {[%clk 0:00:01.8]} 31. Rc6 {[%clk 0:00:23.1]} 31... Rd8 {[%clk 0:00:02.4]}
32. Rd6 {[%clk 0:00:22.1]} 32... Rf8 {[%clk 0:00:02.2]} 33. Qd5 {[%clk
0:00:22.3]} 33... Bxc2 {[%clk 0:00:02.5]} 34. Rd7 {[%clk 0:00:20.8]} 34... Bd3
{[%clk 0:00:02.1]} 35. Rxf7 {[%clk 0:00:20.6]} 35... Rxf7+ {[%clk 0:00:02]} 36.
Kg3 {[%clk 0:00:19.2]} 1-0

[Event "Early-Titled-Tuesday-Blitz-January-30-2024"]
[Site "Chess.com"]
[Date "2024.01.30"]
[Round "10"]
[White "FLYD"]
[Black "kai_nov"]
[Result "1-0"]
[WhiteElo "2054"]
[BlackElo "2231"]
[TimeControl "180+1"]
[EndTime "10:01:35 PST"]
[Termination "FLYD won on time"]

1. e4 {[%clk 0:03:00.9]} 1... c5 {[%clk 0:02:56.2]} 2. Nf3 {[%clk 0:02:59.9]}
2... Nc6 {[%clk 0:02:55.6]} 3. Bb5 {[%clk 0:03:00]} 3... g6 {[%clk 0:02:53]} 4.
O-O {[%clk 0:02:59.9]} 4... Bg7 {[%clk 0:02:49.2]} 5. c3 {[%clk 0:02:59.8]} 5...
d6 {[%clk 0:02:47]} 6. d4 {[%clk 0:02:59.4]} 6... cxd4 {[%clk 0:02:38.8]} 7.
cxd4 {[%clk 0:03:00.3]} 7... Bd7 {[%clk 0:02:35.9]} 8. Nc3 {[%clk 0:02:59.3]}
8... a6 {[%clk 0:02:27.6]} 9. Bc4 {[%clk 0:02:51.3]} 9... e6 {[%clk 0:02:25.8]}
10. Bf4 {[%clk 0:02:43.9]} 10... e5 {[%clk 0:02:15.5]} 11. Bg3 {[%clk
0:02:34.9]} 11... exd4 {[%clk 0:02:11.7]} 12. Nd5 {[%clk 0:02:34.5]} 12... Ne5
{[%clk 0:02:00.8]} 13. Bb3 {[%clk 0:02:22]} 13... Ne7 {[%clk 0:01:52.3]} 14.
Nxe5 {[%clk 0:01:58.4]} 14... dxe5 {[%clk 0:01:48.3]} 15. Bh4 {[%clk 0:01:57.8]}
15... f6 {[%clk 0:01:27]} 16. Nxf6+ {[%clk 0:01:15.3]} 16... Bxf6 {[%clk
0:00:55.9]} 17. Bxf6 {[%clk 0:01:14.6]} 17... Rf8 {[%clk 0:00:52.2]} 18. Bxe5
{[%clk 0:01:05.5]} 18... Nc6 {[%clk 0:00:50.6]} 19. Bd6 {[%clk 0:01:05.8]} 19...
Qf6 {[%clk 0:00:34.7]} 20. e5 {[%clk 0:00:56.4]} 20... Qf5 {[%clk 0:00:29.3]}
21. e6 {[%clk 0:00:47.4]} 21... Bc8 {[%clk 0:00:13.6]} 22. Bxf8 {[%clk
0:00:40.8]} 22... Qxf8 {[%clk 0:00:10.6]} 23. Bd5 {[%clk 0:00:37.9]} 23... Qd6
{[%clk 0:00:09.5]} 24. Bxc6+ {[%clk 0:00:36.7]} 24... bxc6 {[%clk 0:00:08.9]}
25. Qa4 {[%clk 0:00:29.6]} 25... Bxe6 {[%clk 0:00:08.5]} 26. Rad1 {[%clk
0:00:28.7]} 26... Kf7 {[%clk 0:00:05.8]} 27. Rxd4 {[%clk 0:00:26.6]} 27... Qc5
{[%clk 0:00:04.5]} 28. Rf4+ {[%clk 0:00:25.5]} 28... Bf5 {[%clk 0:00:03.1]} 29.
g4 {[%clk 0:00:23.7]} 29... Rg8 {[%clk 0:00:01.6]} 30. gxf5 {[%clk 0:00:13.2]}
30... gxf5+ {[%clk 0:00:02.5]} 31. Kh1 {[%clk 0:00:13.3]} 31... Qd5+ {[%clk
0:00:03.1]} 32. f3 {[%clk 0:00:13.9]} 32... Qd3 {[%clk 0:00:03.3]} 33. Qc4+
{[%clk 0:00:13.6]} 1-0

[Event "Early-Titled-Tuesday-Blitz-January-30-2024"]
[Site "Chess.com"]
[Date "2024.01.30"]
[Round "10"]
[White "atalz0"]
[Black "Boundless_Strike"]
[Result "0-1"]
[WhiteElo "2470"]
[BlackElo "2631"]
[TimeControl "180+1"]
[EndTime "10:01:40 PST"]
[Termination "Boundless_Strike won by checkmate"]

1. d4 {[%clk 0:03:00.9]} 1... e5 {[%clk 0:02:59.2]} 2. dxe5 {[%clk 0:03:00.5]}
2... d6 {[%clk 0:02:59.6]} 3. Bf4 {[%clk 0:02:59.4]} 3... Nc6 {[%clk 0:02:59.4]}
4. Nf3 {[%clk 0:02:59.3]} 4... Bg4 {[%clk 0:02:59]} 5. Nbd2 {[%clk 0:02:41.7]}
5... dxe5 {[%clk 0:02:48.2]} 6. Nxe5 {[%clk 0:02:39.4]} 6... Nxe5 {[%clk
0:02:48.4]} 7. Bxe5 {[%clk 0:02:40.3]} 7... Qe7 {[%clk 0:02:48.1]} 8. h3 {[%clk
0:02:08.5]} 8... Qxe5 {[%clk 0:02:22.2]} 9. hxg4 {[%clk 0:02:07.8]} 9... O-O-O
{[%clk 0:02:22.9]} 10. c3 {[%clk 0:01:57.3]} 10... Nf6 {[%clk 0:02:21.3]} 11.
Qa4 {[%clk 0:01:49.9]} 11... Bc5 {[%clk 0:02:04.4]} 12. e3 {[%clk 0:01:44.2]}
12... Bxe3 {[%clk 0:02:00.6]} 13. O-O-O {[%clk 0:01:37.4]} 13... Bxd2+ {[%clk
0:00:57.2]} 14. Rxd2 {[%clk 0:01:38.3]} 14... Rxd2 {[%clk 0:00:56.2]} 15. Kxd2
{[%clk 0:01:37.1]} 15... Rd8+ {[%clk 0:00:55.6]} 16. Kc2 {[%clk 0:00:54.8]}
16... Qe1 {[%clk 0:00:33.8]} 17. Kb3 {[%clk 0:00:16.2]} 17... Ne4 {[%clk
0:00:13.4]} 18. Ka3 {[%clk 0:00:14.2]} 18... Kb8 {[%clk 0:00:12.7]} 19. f3
{[%clk 0:00:12.6]} 19... Nc5 {[%clk 0:00:12.5]} 20. Qb5 {[%clk 0:00:09.9]} 20...
Nd3 {[%clk 0:00:09.6]} 21. Bxd3 {[%clk 0:00:09.9]} 21... Qxh1 {[%clk 0:00:09.3]}
22. Be4 {[%clk 0:00:10.3]} 22... c6 {[%clk 0:00:04.8]} 23. Bxc6 {[%clk
0:00:10.4]} 23... Kc7 {[%clk 0:00:05.2]} 24. Qxb7+ {[%clk 0:00:10]} 24... Kd6
{[%clk 0:00:05.7]} 25. Be4 {[%clk 0:00:09.4]} 25... Qd1 {[%clk 0:00:05.1]} 26.
Qc6+ {[%clk 0:00:08.6]} 26... Ke7 {[%clk 0:00:05.3]} 27. Qc7+ {[%clk 0:00:07.4]}
27... Rd7 {[%clk 0:00:05.9]} 28. Qe5+ {[%clk 0:00:07.2]} 28... Kf8 {[%clk
0:00:06.3]} 29. Qb8+ {[%clk 0:00:07.1]} 29... Rd8 {[%clk 0:00:06.9]} 30. Qxa7
{[%clk 0:00:06.6]} 30... Qd6+ {[%clk 0:00:07.4]} 31. Kb3 {[%clk 0:00:05.5]}
31... Rb8+ {[%clk 0:00:07.3]} 32. Kc2 {[%clk 0:00:05.7]} 32... Rd8 {[%clk
0:00:07.8]} 33. Qe3 {[%clk 0:00:05.4]} 33... Qd1# {[%clk 0:00:07.8]} 0-1

[Event "Early-Titled-Tuesday-Blitz-January-30-2024"]
[Site "Chess.com"]
[Date "2024.01.30"]
[Round "10"]
[White "Trojan-Knight"]
[Black "secrethawk1"]
[Result "0-1"]
[WhiteElo "2632"]
[BlackElo "2465"]
[TimeControl "180+1"]
[EndTime "10:01:41 PST"]
[Termination "secrethawk1 won by checkmate"]

1. c4 {[%clk 0:03:00.4]} 1... c6 {[%clk 0:02:59]} 2. d4 {[%clk 0:03:00]} 2... d5
{[%clk 0:02:59.9]} 3. Nc3 {[%clk 0:03:00.3]} 3... Nf6 {[%clk 0:02:59.7]} 4. Nf3
{[%clk 0:03:00.8]} 4... e6 {[%clk 0:02:59.9]} 5. Bg5 {[%clk 0:03:00.7]} 5... h6
{[%clk 0:02:58.2]} 6. Bxf6 {[%clk 0:02:59.2]} 6... Qxf6 {[%clk 0:02:59.1]} 7. e3
{[%clk 0:02:59.8]} 7... g6 {[%clk 0:02:56.9]} 8. Be2 {[%clk 0:02:58.8]} 8... Bg7
{[%clk 0:02:55.6]} 9. O-O {[%clk 0:02:57.8]} 9... O-O {[%clk 0:02:55.5]} 10. Ne5
{[%clk 0:02:57.6]} 10... Qd8 {[%clk 0:02:55.1]} 11. f4 {[%clk 0:02:56.5]} 11...
dxc4 {[%clk 0:02:54.8]} 12. Nxc4 {[%clk 0:02:32.6]} 12... Nd7 {[%clk 0:02:47.3]}
13. e4 {[%clk 0:02:13.6]} 13... Nb6 {[%clk 0:02:45.5]} 14. e5 {[%clk 0:02:11.7]}
14... Nxc4 {[%clk 0:02:43.2]} 15. Bxc4 {[%clk 0:02:12.6]} 15... b5 {[%clk
0:02:43.1]} 16. Be2 {[%clk 0:02:09.6]} 16... Bb7 {[%clk 0:02:42.9]} 17. Ne4
{[%clk 0:02:08.4]} 17... Re8 {[%clk 0:02:36]} 18. Rc1 {[%clk 0:01:58.9]} 18...
Re7 {[%clk 0:02:34.3]} 19. Bf3 {[%clk 0:01:54]} 19... Rc7 {[%clk 0:02:26.9]} 20.
Rf2 {[%clk 0:01:52.6]} 20... Bf8 {[%clk 0:02:17.3]} 21. Rd2 {[%clk 0:01:39.6]}
21... Be7 {[%clk 0:01:52.8]} 22. Nc5 {[%clk 0:00:50.9]} 22... Rac8 {[%clk
0:01:48.7]} 23. Nxb7 {[%clk 0:00:49.4]} 23... Rxb7 {[%clk 0:01:47.1]} 24. Bxc6
{[%clk 0:00:49.9]} 24... Rbc7 {[%clk 0:01:46.1]} 25. Rdc2 {[%clk 0:00:48]} 25...
b4 {[%clk 0:01:43.1]} 26. Qd3 {[%clk 0:00:26.2]} 26... a5 {[%clk 0:01:38.3]} 27.
d5 {[%clk 0:00:20.2]} 27... exd5 {[%clk 0:01:35.5]} 28. Bxd5 {[%clk 0:00:20.4]}
28... Rxc2 {[%clk 0:01:34]} 29. Qxg6+ {[%clk 0:00:20.3]} 29... Kh8 {[%clk
0:01:29.2]} 30. Qxh6+ {[%clk 0:00:20.4]} 30... Kg8 {[%clk 0:01:27.4]} 31. Qg6+
{[%clk 0:00:20.7]} 31... Kh8 {[%clk 0:01:27]} 32. Qh5+ {[%clk 0:00:20.8]} 32...
Kg7 {[%clk 0:01:17.2]} 33. Qxf7+ {[%clk 0:00:20.1]} 33... Kh6 {[%clk 0:01:07.6]}
34. Qe6+ {[%clk 0:00:16.7]} 34... Bf6 {[%clk 0:00:55]} 35. Qh3+ {[%clk
0:00:13.5]} 35... Kg7 {[%clk 0:00:50.1]} 36. exf6+ {[%clk 0:00:13.3]} 36... Qxf6
{[%clk 0:00:46.9]} 37. Qg4+ {[%clk 0:00:09.8]} 37... Kh8 {[%clk 0:00:32.2]} 38.
Qh5+ {[%clk 0:00:09.4]} 38... Kg7 {[%clk 0:00:31.9]} 39. Rf1 {[%clk 0:00:08.7]}
39... R8c5 {[%clk 0:00:23.2]} 40. Qg4+ {[%clk 0:00:08.8]} 40... Kf8 {[%clk
0:00:23.3]} 41. Be4 {[%clk 0:00:08.1]} 41... Qd4+ {[%clk 0:00:23.2]} 42. Kh1
{[%clk 0:00:07.5]} 42... Qxe4 {[%clk 0:00:23.5]} 43. Qh4 {[%clk 0:00:05.5]}
43... Qxg2# {[%clk 0:00:23.3]} 0-1